Department,Entity, Transaction Date, Expense Type, Expense Area, Supplier Name,Transaction number, Amount, Invoice Description
DFID,CSC,06/02/2019,Tuition Fee,Award Costs,University of Oxford,NOM000809,-18000,
DFID,CSC,20/02/2019,Tuition Fee,Award Costs,University of Oxford,NOM000810,-9000,
DFID,CSC,01/02/2019,Tuition Fee,Award Costs,University of London,PIN037899,7980,
DFID,CSC,01/02/2019,Tuition Fee,Award Costs,University of Dundee,PIN037900,57556.65,Tuition fees for 10 scholars
DFID,CSC,01/02/2019,Tuition Fee,Award Costs,University of Dundee,PIN037900,6750,
DFID,CSC,01/02/2019,Tuition Fee,Award Costs,Bangor University,PIN037901,4899,
DFID,CSC,01/02/2019,Tuition Fee,Award Costs,Bangor University,PIN037902,15200,
DFID,CSC,01/02/2019,Tuition Fee,Award Costs,Bangor University,PIN037903,-15200,
DFID,CSC,01/02/2019,Tuition Fee,Award Costs,Bangor University,PIN037904,3670,
DFID,CSC,01/02/2019,Tuition Fee,Award Costs,University of Liverpool,PIN037905,30000,Tuition fees for 5 scholars
DFID,CSC,01/02/2019,Tuition Fee,Award Costs,University of London,PIN037906,71820,Tuition fees for 9 scholars
DFID,CSC,01/02/2019,Tuition Fee,Award Costs,Loughborough University,PIN037907,27900,Tuition fees for 11 scholars
DFID,CSC,01/02/2019,Tuition Fee,Award Costs,Bournemouth University,PIN037910,28000,Tuition fees for 2 scholars
DFID,CSC,01/02/2019,Scholar Allowances,Award Costs,Bournemouth University,PIN037910,375,
DFID,CSC,01/02/2019,Scholar Travel,Award Costs,Bournemouth University,PIN037910,1041.97,
DFID,CSC,01/02/2019,Scholar Travel,Award Costs,Bournemouth University,PIN037910,1142.8,
DFID,CSC,01/02/2019,Scholar Travel,Award Costs,Diversity Travel,PIN037914,442.86,
DFID,CSC,01/02/2019,Fieldwork Airfare,Award Costs,Diversity Travel,PIN037914,958.96,
DFID,CSC,01/02/2019,Scholar Travel,Award Costs,Diversity Travel,PIN037914,530.5,
DFID,CSC,01/02/2019,Scholar Travel,Award Costs,Diversity Travel,PIN037914,469.91,
DFID,CSC,01/02/2019,Scholar Travel,Award Costs,Diversity Travel,PIN037914,548.76,
DFID,CSC,01/02/2019,Scholar Travel,Award Costs,Diversity Travel,PIN037914,1198.61,
DFID,CSC,01/02/2019,Scholar Travel,Award Costs,Diversity Travel,PIN037914,226.3,
DFID,CSC,01/02/2019,Scholar Travel,Award Costs,Diversity Travel,PIN037914,545.61,
DFID,CSC,01/02/2019,Scholar Travel,Award Costs,Diversity Travel,PIN037914,-257.4,
DFID,CSC,01/02/2019,Fieldwork Airfare,Award Costs,Diversity Travel,PIN037915,656.99,
DFID,CSC,01/02/2019,Scholar Travel,Award Costs,Diversity Travel,PIN037915,885.68,
DFID,CSC,01/02/2019,Scholar Travel,Award Costs,Diversity Travel,PIN037915,692.2,
DFID,CSC,01/02/2019,Scholar Travel,Award Costs,Diversity Travel,PIN037915,504.84,
DFID,CSC,01/02/2019,Scholar Travel,Award Costs,Diversity Travel,PIN037915,-55,
DFID,CSC,01/02/2019,Scholar Travel,Award Costs,Diversity Travel,PIN037915,20.4,
DFID,CSC,01/02/2019,Scholar Travel,Award Costs,Diversity Travel,PIN037916,624.2,
BEIS,CSC,01/02/2019,Scholar Travel,Award Costs,Diversity Travel,PIN037916,507.62,
DFID,CSC,01/02/2019,Scholar Travel,Award Costs,Diversity Travel,PIN037917,646.75,
DFID,CSC,01/02/2019,Scholar Travel,Award Costs,Diversity Travel,PIN037917,645.4,
DFID,CSC,01/02/2019,Scholar Travel,Award Costs,Diversity Travel,PIN037917,175,
DFID,CSC,01/02/2019,Fieldwork Airfare,Award Costs,Diversity Travel,PIN037917,758.59,
DFID,CSC,01/02/2019,Fieldwork Airfare,Award Costs,Diversity Travel,PIN037917,462.6,
DFID,CSC,01/02/2019,Scholar Travel,Award Costs,Diversity Travel,PIN037917,556.22,
DFID,CSC,01/02/2019,Scholar Travel,Award Costs,Diversity Travel,PIN037917,570.5,
DFID,CSC,01/02/2019,Scholar Travel,Award Costs,Diversity Travel,PIN037917,583.96,
DFID,CSC,01/02/2019,Scholar Travel,Award Costs,Diversity Travel,PIN037917,493.18,
DFID,CSC,01/02/2019,Scholar Travel,Award Costs,Diversity Travel,PIN037917,357.8,
DFID,CSC,01/02/2019,Scholar Travel,Award Costs,Diversity Travel,PIN037917,628.8,
DFID,CSC,01/02/2019,Scholar Travel,Award Costs,Diversity Travel,PIN037917,464.8,
DFID,CSC,01/02/2019,Fieldwork Airfare,Award Costs,Diversity Travel,PIN037918,372.78,
DFID,CSC,01/02/2019,Scholar Travel,Award Costs,Diversity Travel,PIN037918,17.7,
DFID,CSC,01/02/2019,Scholar Travel,Award Costs,Diversity Travel,PIN037918,-301.42,
DFID,CSC,01/02/2019,Scholar Travel,Award Costs,Diversity Travel,PIN037918,384.7,
DFID,CSC,01/02/2019,Scholar Travel,Award Costs,Diversity Travel,PIN037918,356.2,
DFID,CSC,01/02/2019,Scholar Travel,Award Costs,Diversity Travel,PIN037918,472.41,
DFID,CSC,01/02/2019,Fieldwork Airfare,Award Costs,Diversity Travel,PIN037918,468.4,
DFID,CSC,01/02/2019,Scholar Stipend,Award Costs,Scholar,PIN037921,2880.28,
DFID,CSC,01/02/2019,Scholar Allowances,Award Costs,Scholar,PIN037923,443.03,
DFID,CSC,01/02/2019,Scholar Allowances,Award Costs,Scholar,PIN037923,876.56,
DFID,CSC,01/02/2019,Scholar Stipend,Award Costs,Scholar,PIN037923,2061.08,
DFID,CSC,01/02/2019,Tuition Fee,Award Costs,Aberystwyth University,PIN037924,12200,
DFID,CSC,01/02/2019,Tuition Fee,Award Costs,Aberystwyth University,PIN037924,12200,
DFID,CSC,01/02/2019,Tuition Fee,Award Costs,Kings College London,PIN037925,3600,
DFID,CSC,01/02/2019,Tuition Fee,Award Costs,Kings College London,PIN037926,3600,
DFID,CSC,01/02/2019,Award Support Costs,Award Costs,University of Surrey,PIN037927,4000,
DFID,CSC,01/02/2019,Tuition Fee,Award Costs,University of Surrey,PIN037927,15200,
DFID,CSC,01/02/2019,Tuition Fee,Award Costs,University of Surrey,PIN037928,16400,
DFID,CSC,01/02/2019,Tuition Fee,Award Costs,University of Surrey,PIN037929,15200,
DFID,CSC,01/02/2019,Tuition Fee,Award Costs,Cranfield University,PIN037930,15200,
DFID,CSC,01/02/2019,Tuition Fee,Award Costs,University of East London,PIN037931,9984,
DFID,CSC,01/02/2019,Tuition Fee,Award Costs,Cranfield University,PIN037932,19000,
DFID,CSC,01/02/2019,Tuition Fee,Award Costs,Cranfield University,PIN037933,19000,
DFID,CSC,01/02/2019,Tuition Fee,Award Costs,Liverpool School of Tropical Medicine,PIN037935,15200,
DFID,CSC,01/02/2019,Tuition Fee,Programme Costs,Kingston University London,PIN037936,10960,
DFID,CSC,01/02/2019,Tuition Fee,Award Costs,Aberystwyth University,PIN037937,11600,
DFID,CSC,01/02/2019,Tuition Fee,Award Costs,St Cross College Oxford,PIN037938,18000,
DFID,CSC,01/02/2019,Tuition Fee,Award Costs,St Cross College Oxford,PIN037939,18000,
DFID,CSC,01/02/2019,Tuition Fee,Award Costs,Imperial College London,PIN037940,18000,
DFID,CSC,01/02/2019,Tuition Fee,Award Costs,Imperial College London,PIN037940,18000,
DFID,CSC,01/02/2019,Tuition Fee,Award Costs,Imperial College London,PIN037940,18000,
DFID,CSC,01/02/2019,Tuition Fee,Award Costs,Imperial College London,PIN037940,18000,
DFID,CSC,01/02/2019,Tuition Fee,Award Costs,Imperial College London,PIN037940,18000,
DFID,CSC,01/02/2019,Tuition Fee,Award Costs,Imperial College London,PIN037940,18000,
DFID,CSC,01/02/2019,Tuition Fee,Award Costs,Imperial College London,PIN037940,18000,
DFID,CSC,01/02/2019,Tuition Fee,Award Costs,Imperial College London,PIN037940,18000,
DFID,CSC,01/02/2019,Tuition Fee,Award Costs,Aberystwyth University,PIN037941,31500,Tuition fees for 2 scholars
DFID,CSC,01/02/2019,Tuition Fee,Award Costs,St Cross College Oxford,PIN037942,22500,
DFID,CSC,01/02/2019,Tuition Fee,Award Costs,Bangor University,PIN037943,12400,
DFID,CSC,01/02/2019,Award Support Costs,Award Costs,University College London Fees,PIN037944,5000,
DFID,CSC,01/02/2019,Tuition Fee,Award Costs,University College London Fees,PIN037944,18000,
DFID,CSC,01/02/2019,Tuition Fee,Award Costs,Swansea University,PIN037945,16520,
DFID,CSC,01/02/2019,Tuition Fee,Award Costs,Royal Veterinary College,PIN037946,6000,
DFID,CSC,01/02/2019,Tuition Fee,Award Costs,Royal Veterinary College,PIN037946,53400,Tuition fees for 14 scholars
DFID,CSC,01/02/2019,Tuition Fee,Award Costs,University College London Fees,PIN037948,13414.57,
DFID,CSC,01/02/2019,Tuition Fee,Award Costs,University of Strathclyde,PIN037949,7920,
DFID,CSC,01/02/2019,Tuition Fee,Award Costs,University of Strathclyde,PIN037950,11250.4,
DFID,CSC,01/02/2019,Tuition Fee,Award Costs,University of Exeter,PIN037951,19800,
DFID,CSC,01/02/2019,Tuition Fee,Award Costs,University of Exeter,PIN037952,20100,
DFID,CSC,01/02/2019,Tuition Fee,Award Costs,University of Exeter,PIN037953,19800,
DFID,CSC,01/02/2019,Tuition Fee,Award Costs,University of Exeter,PIN037954,19800,
DFID,CSC,01/02/2019,Tuition Fee,Award Costs,University of Exeter,PIN037955,20100,
DFID,CSC,01/02/2019,Tuition Fee,Award Costs,University of Exeter,PIN037956,19800,
DFID,CSC,01/02/2019,Tuition Fee,Award Costs,University of Reading,PIN037957,12856,
DFID,CSC,01/02/2019,Award Support Costs,Award Costs,University of Reading,PIN037958,850,
DFID,CSC,01/02/2019,Tuition Fee,Award Costs,Cranfield University,PIN037959,16000,
DFID,CSC,01/02/2019,Tuition Fee,Award Costs,Cranfield University,PIN037960,15200,
DFID,CSC,01/02/2019,Tuition Fee,Award Costs,University of Greenwich,PIN037961,10800,
DFID,CSC,01/02/2019,Tuition Fee,Award Costs,Liverpool John Moores University,PIN037963,13250,
DFID,CSC,01/02/2019,Tuition Fee,Award Costs,Liverpool John Moores University,PIN037964,13250,
DFID,CSC,01/02/2019,Scholar Allowances,Award Costs,University of Aberdeen,PIN037966,650,
DFID,CSC,01/02/2019,Scholar Travel,Award Costs,University of Aberdeen,PIN037966,1810.07,
DFID,CSC,01/02/2019,Tuition Fee,Award Costs,Brasenose College Oxford,PIN037967,22500,
DFID,CSC,01/02/2019,Scholar Travel,Award Costs,The Cambridge Commonwealth Trust,PIN037968,2018.74,
DFID,CSC,01/02/2019,Scholar Allowances,Award Costs,University of Southampton,PIN037969,200,
DFID,CSC,01/02/2019,Scholar Travel,Award Costs,University of Southampton,PIN037969,490.07,
DFID,CSC,01/02/2019,Scholar Allowances,Award Costs,University of Southampton,PIN037969,200,
DFID,CSC,01/02/2019,Scholar Allowances,Award Costs,University of Southampton,PIN037969,225,
DFID,CSC,01/02/2019,Scholar Travel,Award Costs,Liverpool Hope University,PIN037970,539.3,
DFID,CSC,01/02/2019,Scholar Allowances,Award Costs,Liverpool Hope University,PIN037970,250,
DFID,CSC,01/02/2019,Scholar Travel,Award Costs,Liverpool Hope University,PIN037970,400.78,
DFID,CSC,01/02/2019,Scholar Travel,Award Costs,Sch Oriental & African Studies,PIN037971,923.9,
DFID,CSC,01/02/2019,Tuition Fee,Award Costs,Liverpool School of Tropical Medicine,PIN037972,15200,
DFID,CSC,01/02/2019,Tuition Fee,Award Costs,Liverpool School of Tropical Medicine,PIN037972,15200,
DFID,CSC,01/02/2019,Tuition Fee,Award Costs,Liverpool School of Tropical Medicine,PIN037972,15200,
DFID,CSC,01/02/2019,Scholar Allowances,Award Costs,University of Southampton,PIN037973,200,
DFID,CSC,01/02/2019,Scholar Travel,Award Costs,University of Southampton,PIN037973,632.37,
DFID,CSC,01/02/2019,Scholar Allowances,Award Costs,University of Southampton,PIN037973,200,
DFID,CSC,01/02/2019,Scholar Allowances,Award Costs,University of Southampton,PIN037973,225,
DFID,CSC,01/02/2019,Tuition Fee,Award Costs,University of Oxford,PIN037974,22500,
DFID,CSC,01/02/2019,Scholar Travel,Award Costs,BATH SPA UNIVERSITY,PIN037977,705.85,
DFID,CSC,01/02/2019,Tuition Fee,Award Costs,BATH SPA UNIVERSITY,PIN037977,12500,
DFID,CSC,01/02/2019,Scholar Allowances,Award Costs,Queen Margaret University,PIN037979,300,
DFID,CSC,01/02/2019,Scholar Travel,Award Costs,Queen Margaret University,PIN037979,913.02,
DFE,CSC,01/02/2019,Scholar Allowances,Award Costs,The Cambridge Commonwealth Trust,PIN037980,50,
DFE,CSC,01/02/2019,Scholar Allowances,Award Costs,The Cambridge Commonwealth Trust,PIN037980,2748,
DFE,CSC,01/02/2019,Scholar Stipend,Award Costs,The Cambridge Commonwealth Trust,PIN037980,13008,
DFE,CSC,01/02/2019,Tuition Fee,Award Costs,The Cambridge Commonwealth Trust,PIN037980,21189,
DFID,CSC,01/02/2019,Scholar Travel,Award Costs,Nottingham Trent University,PIN037981,35.75,
DFID,CSC,01/02/2019,Scholar Allowances,Award Costs,Nottingham Trent University,PIN037981,462.6,
DFID,CSC,01/02/2019,Scholar Travel,Award Costs,Nottingham Trent University,PIN037981,1809.72,
DFID,CSC,01/02/2019,Award Support Costs,Award Costs,The Open University,PIN037982,1000,
DFID,CSC,01/02/2019,Tuition Fee,Award Costs,The Open University,PIN037982,8522.4,
DFID,CSC,01/02/2019,Award Support Costs,Award Costs,University of Cambridge,PIN037983,5000,
DFID,CSC,01/02/2019,Award Support Costs,Award Costs,Glasgow Caledonian University,PIN037984,3000,
DFID,CSC,01/02/2019,Award Support Costs,Award Costs,University of Oxford,PIN037986,5000,
DFID,CSC,01/02/2019,Award Support Costs,Award Costs,University of Plymouth,PIN037987,750,
DFID,CSC,01/02/2019,Award Support Costs,Award Costs,University of Cambridge,PIN037988,3600,
DFID,CSC,01/02/2019,Award Support Costs,Award Costs,University of Strathclyde,PIN037989,5445,
DFID,CSC,01/02/2019,Award Support Costs,Award Costs,The University of Birmingham,PIN037990,2500,
DFID,CSC,01/02/2019,Award Support Costs,Award Costs,The University of Birmingham,PIN037991,1000,
DFID,CSC,01/02/2019,Award Support Costs,Award Costs,University of Greenwich,PIN037992,5000,
DFID,CSC,01/02/2019,Award Support Costs,Award Costs,University of Surrey,PIN037993,2500,
DFID,CSC,01/02/2019,Tuition Fee,Award Costs,University of Glasgow,PIN037994,5561.26,
DFID,CSC,01/02/2019,Tuition Fee,Award Costs,Cranfield University,PIN037996,15200,
DFID,CSC,01/02/2019,Award Support Costs,Award Costs,University of Cambridge,PIN037997,5000,
DFID,CSC,01/02/2019,Award Support Costs,Award Costs,University of East Anglia,PIN037998,3000,
DFID,CSC,01/02/2019,Scholar Travel,Award Costs,Royal Veterinary College,PIN037999,939.6,
DFID,CSC,01/02/2019,Scholar Travel,Award Costs,Royal Veterinary College,PIN037999,411.81,
DFID,CSC,01/02/2019,Scholar Allowances,Award Costs,Royal Veterinary College,PIN037999,400,
DFID,CSC,01/02/2019,Scholar Allowances,Award Costs,Royal Veterinary College,PIN037999,400,
DFID,CSC,01/02/2019,Scholar Allowances,Award Costs,Royal Veterinary College,PIN037999,450,
DFID,CSC,01/02/2019,Scholar Travel,Award Costs,Royal Veterinary College,PIN037999,84.19,
DFID,CSC,01/02/2019,Tuition Fee,Award Costs,Royal Veterinary College,PIN037999,44300,Tuition fees for 2 scholars
DFID,CSC,01/02/2019,Scholar Allowances,Award Costs,Scholar,PIN038006,114.83,
DFID,CSC,01/02/2019,Scholar Allowances,Award Costs,Scholar,PIN038006,114.83,
DFID,CSC,01/02/2019,Scholar Stipend,Award Costs,Scholar,PIN038006,1308.07,
DFID,CSC,01/02/2019,Scholar Stipend,Programme Costs,TFW Printers,PIN038008,1328,
DFID,CSC,01/02/2019,Alumni Engagement,Programme Costs,TFW Printers,PIN038008,6640,
DFID,CSC,04/02/2019,Scholar Allowances,Award Costs,Scholar,PIN038009,876.41,
DFID,CSC,08/02/2019,Scholar Allowances,Award Costs,Scholar,PIN038020,600,
DFID,CSC,08/02/2019,Immigration Health Surcharge,Award Costs,Scholar,PIN038023,150,
DFID,CSC,08/02/2019,Visa Costs,Award Costs,Scholar,PIN038023,475,
DFID,CSC,08/02/2019,Tuition Fee,Award Costs,University of St  Andrews,PIN038025,41960,Tuition fees for 2 scholars
DFID,CSC,08/02/2019,Tuition Fee,Award Costs,University of St  Andrews,PIN038025,13240,
DFID,CSC,08/02/2019,Tuition Fee,Award Costs,University of St  Andrews,PIN038025,14640,
DFID,CSC,08/02/2019,Scholar Travel,Award Costs,University of Buckingham,PIN038028,660,
DFID,CSC,08/02/2019,Award Support Costs,Award Costs,Kings College London,PIN038029,5000,
DFID,CSC,08/02/2019,Award Support Costs,Award Costs,University of St  Andrews,PIN038030,5000,
DFID,CSC,08/02/2019,Award Support Costs,Award Costs,Glasgow Caledonian University,PIN038031,5000,
DFID,CSC,08/02/2019,Award Support Costs,Award Costs,University of Newcastle upon Tyne,PIN038032,2500,
BEIS,CSC,08/02/2019,Award Support Costs,Award Costs,Heriot Watt University,PIN038033,2500,
BEIS,CSC,08/02/2019,Award Support Costs,Award Costs,University of Stirling,PIN038034,2500,
BEIS,CSC,08/02/2019,Award Support Costs,Award Costs,University of Cambridge,PIN038035,2500,
DFID,CSC,08/02/2019,Award Support Costs,Award Costs,University of Reading,PIN038036,1000,
DFID,CSC,08/02/2019,Tuition Fee,Award Costs,University of Reading,PIN038036,12856,
DFID,CSC,08/02/2019,Tuition Fee,Award Costs,University of Surrey,PIN038037,18000,
DFID,CSC,08/02/2019,Tuition Fee,Award Costs,University College London Fees,PIN038038,22500,
DFID,CSC,08/02/2019,Tuition Fee,Award Costs,Cranfield University,PIN038039,19000,
DFID,CSC,08/02/2019,Tuition Fee,Award Costs,Cranfield University,PIN038040,19000,
DFID,CSC,08/02/2019,Tuition Fee,Award Costs,Cranfield University,PIN038041,19000,
DFID,CSC,08/02/2019,Tuition Fee,Award Costs,Cranfield University,PIN038042,19000,
DFID,CSC,08/02/2019,Tuition Fee,Award Costs,Nottingham Trent University,PIN038043,13900,
DFID,CSC,08/02/2019,Tuition Fee,Award Costs,Sch Oriental & African Studies,PIN038044,13305.6,
DFID,CSC,08/02/2019,Tuition Fee,Award Costs,Nottingham Trent University,PIN038045,13250,
DFID,CSC,08/02/2019,Tuition Fee,Award Costs,University of Glasgow,PIN038046,14776.66,
DFID,CSC,08/02/2019,Scholar Travel,Award Costs,Diversity Travel,PIN038047,600,
DFID,CSC,08/02/2019,Scholar Travel,Programme Costs,Diversity Travel,PIN038047,610.6,
DFID,CSC,08/02/2019,Scholar Travel,Award Costs,Diversity Travel,PIN038047,760.1,
DFID,CSC,08/02/2019,Fieldwork Airfare,Award Costs,Diversity Travel,PIN038047,162,
DFID,CSC,08/02/2019,Scholar Travel,Award Costs,Diversity Travel,PIN038047,592,
DFID,CSC,08/02/2019,Scholar Travel,Award Costs,Diversity Travel,PIN038047,27.7,
DFID,CSC,08/02/2019,Scholar Travel,Award Costs,Diversity Travel,PIN038047,571.77,
DFID,CSC,08/02/2019,Scholar Travel,Award Costs,Diversity Travel,PIN038047,634.1,
DFID,CSC,08/02/2019,Scholar Travel,Award Costs,Diversity Travel,PIN038047,314,
DFID,CSC,08/02/2019,Scholar Travel,Award Costs,Diversity Travel,PIN038047,648.72,
DFID,CSC,08/02/2019,Scholar Travel,Award Costs,Diversity Travel,PIN038047,645,
DFID,CSC,08/02/2019,Scholar Travel,Programme Costs,Diversity Travel,PIN038047,474.65,
DFID,CSC,08/02/2019,Scholar Travel,Award Costs,Diversity Travel,PIN038047,592.4,
DFID,CSC,08/02/2019,Scholar Travel,Award Costs,Diversity Travel,PIN038047,790.7,
DFID,CSC,08/02/2019,Scholar Travel,Award Costs,Diversity Travel,PIN038047,801.6,
DFID,CSC,08/02/2019,Fieldwork Airfare,Award Costs,Diversity Travel,PIN038047,664.71,
DFID,CSC,08/02/2019,Scholar Travel,Award Costs,Diversity Travel,PIN038047,684.9,
DFID,CSC,08/02/2019,Scholar Travel,Award Costs,Diversity Travel,PIN038047,368.4,
DFID,CSC,08/02/2019,Scholar Travel,Award Costs,Diversity Travel,PIN038048,454.8,
DFID,CSC,08/02/2019,Scholar Travel,Award Costs,Diversity Travel,PIN038048,565.4,
DFID,CSC,08/02/2019,Scholar Travel,Award Costs,Diversity Travel,PIN038048,402.1,
DFID,CSC,08/02/2019,Scholar Travel,Award Costs,Diversity Travel,PIN038048,626.5,
DFID,CSC,08/02/2019,Scholar Travel,Programme Costs,Diversity Travel,PIN038048,615.8,
DFID,CSC,08/02/2019,Scholar Travel,Award Costs,Diversity Travel,PIN038048,352,
BEIS,CSC,08/02/2019,Scholar Travel,Award Costs,Diversity Travel,PIN038048,340.72,
DFID,CSC,08/02/2019,Scholar Travel,Award Costs,Diversity Travel,PIN038048,487.38,
DFID,CSC,08/02/2019,Fieldwork Airfare,Award Costs,Diversity Travel,PIN038048,645.5,
DFID,CSC,08/02/2019,Scholar Travel,Award Costs,Diversity Travel,PIN038048,239.8,
DFID,CSC,08/02/2019,Scholar Travel,Award Costs,Diversity Travel,PIN038048,299.7,
BEIS,CSC,08/02/2019,Scholar Travel,Award Costs,Diversity Travel,PIN038048,373.72,
DFID,CSC,08/02/2019,Fieldwork Airfare,Award Costs,Diversity Travel,PIN038048,982.72,
DFID,CSC,08/02/2019,Scholar Travel,Award Costs,Diversity Travel,PIN038049,453,
DFID,CSC,08/02/2019,Scholar Travel,Award Costs,Diversity Travel,PIN038049,374.8,
DFID,CSC,08/02/2019,Scholar Travel,Award Costs,Diversity Travel,PIN038049,391.3,
DFID,CSC,08/02/2019,Scholar Travel,Award Costs,Diversity Travel,PIN038049,534.7,
DFID,CSC,08/02/2019,Scholar Travel,Award Costs,Diversity Travel,PIN038049,583.62,
DFID,CSC,08/02/2019,Scholar Travel,Award Costs,Diversity Travel,PIN038049,276.7,
DFID,CSC,08/02/2019,Scholar Travel,Award Costs,Diversity Travel,PIN038049,1089.11,
DFID,CSC,08/02/2019,Scholar Travel,Award Costs,Diversity Travel,PIN038049,552.2,
BEIS,CSC,08/02/2019,Scholar Travel,Award Costs,Diversity Travel,PIN038049,493.07,
DFID,CSC,08/02/2019,Scholar Travel,Award Costs,Diversity Travel,PIN038050,443,
DFID,CSC,08/02/2019,Scholar Travel,Award Costs,Diversity Travel,PIN038050,407.4,
DFID,CSC,08/02/2019,Scholar Travel,Award Costs,Diversity Travel,PIN038050,241.6,
DFID,CSC,08/02/2019,Fieldwork Airfare,Award Costs,Diversity Travel,PIN038050,889.91,
DFID,CSC,08/02/2019,Scholar Travel,Award Costs,Diversity Travel,PIN038050,579.41,
DFID,CSC,08/02/2019,Scholar Travel,Award Costs,Diversity Travel,PIN038050,350.7,
DFID,CSC,08/02/2019,Fieldwork Airfare,Award Costs,Diversity Travel,PIN038050,799.86,
DFID,CSC,08/02/2019,Scholar Travel,Award Costs,Diversity Travel,PIN038050,481.28,
DFID,CSC,08/02/2019,Scholar Travel,Award Costs,Diversity Travel,PIN038050,321.08,
DFID,CSC,08/02/2019,Scholar Travel,Award Costs,Diversity Travel,PIN038050,543.11,
DFID,CSC,08/02/2019,Scholar Travel,Award Costs,Diversity Travel,PIN038050,528.11,
DFID,CSC,08/02/2019,Fieldwork Airfare,Award Costs,Diversity Travel,PIN038050,699.58,
DFID,CSC,08/02/2019,Scholar Travel,Award Costs,Diversity Travel,PIN038050,602.21,
DFID,CSC,08/02/2019,Fieldwork Airfare,Award Costs,Diversity Travel,PIN038050,559.71,
DFID,CSC,08/02/2019,Scholar Travel,Award Costs,Diversity Travel,PIN038050,363.2,
DFID,CSC,08/02/2019,Scholar Travel,Award Costs,Diversity Travel,PIN038050,1085.02,
DFID,CSC,08/02/2019,Scholar Travel,Award Costs,Diversity Travel,PIN038050,531.1,
DFID,CSC,08/02/2019,Scholar Travel,Award Costs,Diversity Travel,PIN038050,-44.3,
BEIS,CSC,08/02/2019,Scholar Travel,Award Costs,Diversity Travel,PIN038050,640.37,
DFID,CSC,08/02/2019,Scholar Travel,Award Costs,Diversity Travel,PIN038050,432.41,
DFID,CSC,08/02/2019,Scholar Travel,Award Costs,Diversity Travel,PIN038051,338.6,
DFID,CSC,08/02/2019,Scholar Travel,Award Costs,Diversity Travel,PIN038051,504.5,
DFID,CSC,08/02/2019,Scholar Travel,Award Costs,Diversity Travel,PIN038051,398.8,
DFID,CSC,08/02/2019,Scholar Travel,Award Costs,Diversity Travel,PIN038051,909.2,
DFID,CSC,08/02/2019,Visa Costs,Award Costs,Diversity Travel,PIN038051,384.8,
DFID,CSC,08/02/2019,Scholar Travel,Award Costs,Diversity Travel,PIN038051,473.4,
DFID,CSC,08/02/2019,Scholar Travel,Award Costs,Diversity Travel,PIN038051,463.51,
DFID,CSC,08/02/2019,Scholar Travel,Award Costs,Diversity Travel,PIN038051,350.4,
DFID,CSC,08/02/2019,Scholar Travel,Award Costs,Diversity Travel,PIN038051,41.1,
DFID,CSC,08/02/2019,Scholar Travel,Award Costs,Diversity Travel,PIN038051,319.4,
DFID,CSC,08/02/2019,Scholar Travel,Award Costs,Diversity Travel,PIN038052,260.3,
DFID,CSC,08/02/2019,Scholar Travel,Award Costs,Diversity Travel,PIN038052,734.74,
DFID,CSC,08/02/2019,Scholar Travel,Award Costs,Diversity Travel,PIN038052,839.42,
DFID,CSC,08/02/2019,Scholar Travel,Award Costs,Diversity Travel,PIN038052,298,
DFID,CSC,08/02/2019,Fieldwork Airfare,Award Costs,Diversity Travel,PIN038052,832.51,
DFID,CSC,08/02/2019,Scholar Travel,Award Costs,Diversity Travel,PIN038052,654.42,
DFID,CSC,08/02/2019,Fieldwork Airfare,Award Costs,Diversity Travel,PIN038052,884.4,
DFID,CSC,08/02/2019,Scholar Travel,Award Costs,Diversity Travel,PIN038052,20,
DFID,CSC,08/02/2019,Fieldwork Airfare,Award Costs,Diversity Travel,PIN038052,647.7,
DFID,CSC,08/02/2019,Scholar Travel,Award Costs,Diversity Travel,PIN038052,439.5,
DFID,CSC,08/02/2019,Fieldwork Airfare,Award Costs,Diversity Travel,PIN038052,715.81,
DFID,CSC,08/02/2019,Scholar Travel,Award Costs,Diversity Travel,PIN038053,642.2,
DFID,CSC,08/02/2019,Scholar Travel,Award Costs,Diversity Travel,PIN038053,383.7,
DFID,CSC,08/02/2019,Scholar Travel,Award Costs,Diversity Travel,PIN038053,420.4,
DFID,CSC,08/02/2019,Scholar Travel,Award Costs,Diversity Travel,PIN038053,404.6,
DFID,CSC,08/02/2019,Scholar Travel,Award Costs,Diversity Travel,PIN038053,536.8,
DFID,CSC,08/02/2019,Scholar Travel,Award Costs,Diversity Travel,PIN038053,726.7,
DFID,CSC,08/02/2019,Scholar Travel,Award Costs,Diversity Travel,PIN038053,15.1,
DFID,CSC,08/02/2019,Scholar Travel,Award Costs,Diversity Travel,PIN038053,15.1,
DFID,CSC,08/02/2019,Scholar Travel,Award Costs,Diversity Travel,PIN038053,522.8,
DFID,CSC,08/02/2019,Scholar Travel,Award Costs,Diversity Travel,PIN038053,620.3,
DFID,CSC,08/02/2019,Scholar Travel,Award Costs,Diversity Travel,PIN038053,697.9,
DFID,CSC,08/02/2019,Scholar Travel,Award Costs,Diversity Travel,PIN038053,741.6,
DFID,CSC,08/02/2019,Scholar Travel,Award Costs,Diversity Travel,PIN038053,1190.13,
DFID,CSC,08/02/2019,Scholar Travel,Award Costs,Diversity Travel,PIN038053,856.38,
DFID,CSC,08/02/2019,Scholar Travel,Award Costs,Diversity Travel,PIN038053,530.4,
DFID,CSC,08/02/2019,Scholar Travel,Award Costs,Diversity Travel,PIN038053,379.7,
DFID,CSC,08/02/2019,Scholar Travel,Award Costs,Diversity Travel,PIN038053,526.8,
DFID,CSC,08/02/2019,Scholar Travel,Award Costs,Diversity Travel,PIN038053,1185.25,
DFID,CSC,08/02/2019,Scholar Travel,Award Costs,Diversity Travel,PIN038053,443.3,
DFID,CSC,08/02/2019,Scholar Travel,Award Costs,Diversity Travel,PIN038053,428.8,
DFID,CSC,08/02/2019,Scholar Travel,Award Costs,Diversity Travel,PIN038053,484.4,
DFID,CSC,08/02/2019,Scholar Travel,Award Costs,Diversity Travel,PIN038053,24.5,
DFID,CSC,08/02/2019,Scholar Travel,Award Costs,Diversity Travel,PIN038053,457.2,
DFID,CSC,08/02/2019,Scholar Travel,Award Costs,Diversity Travel,PIN038053,505.3,
DFID,CSC,08/02/2019,Scholar Travel,Award Costs,Diversity Travel,PIN038053,663.7,
DFID,CSC,08/02/2019,Scholar Travel,Award Costs,Diversity Travel,PIN038053,265.1,
DFID,CSC,08/02/2019,Scholar Travel,Award Costs,Diversity Travel,PIN038053,512.11,
DFID,CSC,08/02/2019,Scholar Travel,Award Costs,Diversity Travel,PIN038053,356.7,
DFID,CSC,08/02/2019,Scholar Travel,Award Costs,Diversity Travel,PIN038053,364.4,
DFID,CSC,08/02/2019,Scholar Travel,Award Costs,Diversity Travel,PIN038053,600,
DFID,CSC,08/02/2019,Scholar Travel,Award Costs,Diversity Travel,PIN038053,683.3,
DFID,CSC,08/02/2019,Scholar Travel,Award Costs,Diversity Travel,PIN038053,367.7,
DFID,CSC,08/02/2019,Scholar Travel,Award Costs,Diversity Travel,PIN038053,20,
DFID,CSC,08/02/2019,Scholar Travel,Award Costs,Diversity Travel,PIN038053,603.3,
DFID,CSC,08/02/2019,Scholar Travel,Award Costs,Diversity Travel,PIN038053,464.7,
DFID,CSC,08/02/2019,Scholar Travel,Award Costs,Diversity Travel,PIN038053,463.3,
DFID,CSC,08/02/2019,Scholar Travel,Award Costs,Diversity Travel,PIN038054,297.6,
DFID,CSC,08/02/2019,Scholar Travel,Award Costs,Diversity Travel,PIN038054,458.1,
DFID,CSC,08/02/2019,Scholar Travel,Award Costs,Diversity Travel,PIN038054,529.3,
DFID,CSC,08/02/2019,Scholar Travel,Award Costs,Diversity Travel,PIN038054,632.06,
DFID,CSC,08/02/2019,Scholar Travel,Award Costs,Diversity Travel,PIN038054,424.05,
DFID,CSC,08/02/2019,Scholar Travel,Award Costs,Diversity Travel,PIN038054,457.2,
DFID,CSC,08/02/2019,Scholar Travel,Award Costs,Diversity Travel,PIN038054,17.5,
DFID,CSC,08/02/2019,Scholar Travel,Award Costs,Diversity Travel,PIN038054,578.5,
DFID,CSC,08/02/2019,Scholar Travel,Award Costs,Diversity Travel,PIN038054,357.7,
DFID,CSC,08/02/2019,Scholar Travel,Award Costs,Diversity Travel,PIN038054,463.5,
DFID,CSC,08/02/2019,Scholar Travel,Award Costs,Diversity Travel,PIN038054,485.4,
DFID,CSC,08/02/2019,Scholar Travel,Award Costs,Diversity Travel,PIN038054,648.9,
DFID,CSC,08/02/2019,Scholar Travel,Award Costs,Diversity Travel,PIN038054,23.1,
DFID,CSC,08/02/2019,Scholar Travel,Award Costs,Diversity Travel,PIN038054,525.4,
DFID,CSC,08/02/2019,Scholar Travel,Award Costs,Diversity Travel,PIN038054,605.8,
DFID,CSC,08/02/2019,Scholar Travel,Programme Costs,Diversity Travel,PIN038054,584.4,
DFID,CSC,08/02/2019,Scholar Travel,Award Costs,Diversity Travel,PIN038054,649.5,
DFID,CSC,08/02/2019,Scholar Travel,Award Costs,Diversity Travel,PIN038054,566,
DFID,CSC,08/02/2019,Scholar Travel,Award Costs,Diversity Travel,PIN038054,554,
DFID,CSC,08/02/2019,Scholar Travel,Award Costs,Diversity Travel,PIN038054,753.3,
DFID,CSC,08/02/2019,Scholar Travel,Award Costs,Diversity Travel,PIN038054,647.9,
DFID,CSC,08/02/2019,Scholar Travel,Award Costs,Diversity Travel,PIN038054,607.7,
DFID,CSC,08/02/2019,Scholar Travel,Award Costs,Diversity Travel,PIN038054,679.5,
DFID,CSC,08/02/2019,Scholar Travel,Award Costs,Diversity Travel,PIN038054,420.9,
DFID,CSC,08/02/2019,Scholar Travel,Award Costs,Diversity Travel,PIN038054,591.83,
DFID,CSC,08/02/2019,Scholar Travel,Award Costs,Diversity Travel,PIN038054,393,
DFID,CSC,08/02/2019,Scholar Travel,Award Costs,Diversity Travel,PIN038054,755.7,
DFID,CSC,08/02/2019,Scholar Travel,Award Costs,Diversity Travel,PIN038054,314.2,
DFID,CSC,08/02/2019,Scholar Travel,Award Costs,Diversity Travel,PIN038054,130,
DFID,CSC,08/02/2019,Scholar Travel,Award Costs,Diversity Travel,PIN038054,479.9,
DFID,CSC,08/02/2019,Scholar Travel,Award Costs,Diversity Travel,PIN038054,532.7,
DFID,CSC,08/02/2019,Scholar Travel,Award Costs,Diversity Travel,PIN038054,525,
DFID,CSC,08/02/2019,Scholar Travel,Award Costs,Diversity Travel,PIN038054,540.1,
DFID,CSC,08/02/2019,Scholar Travel,Award Costs,Diversity Travel,PIN038054,270.3,
DFID,CSC,08/02/2019,Scholar Travel,Award Costs,Diversity Travel,PIN038054,807.7,
DFID,CSC,08/02/2019,Scholar Travel,Award Costs,Diversity Travel,PIN038054,327,
DFID,CSC,08/02/2019,Scholar Travel,Award Costs,Diversity Travel,PIN038055,-39.8,
DFID,CSC,08/02/2019,Scholar Travel,Award Costs,Diversity Travel,PIN038055,481.92,
DFID,CSC,08/02/2019,Scholar Travel,Award Costs,Diversity Travel,PIN038055,570.62,
DFID,CSC,08/02/2019,Scholar Travel,Award Costs,Diversity Travel,PIN038055,573.52,
DFID,CSC,08/02/2019,Scholar Travel,Award Costs,Diversity Travel,PIN038055,517.54,
DFID,CSC,08/02/2019,Scholar Travel,Award Costs,Diversity Travel,PIN038055,517.3,
DFID,CSC,08/02/2019,Scholar Travel,Award Costs,Diversity Travel,PIN038055,531.81,
DFID,CSC,08/02/2019,Scholar Travel,Award Costs,Diversity Travel,PIN038055,1012.7,
DFID,CSC,08/02/2019,Scholar Travel,Award Costs,Diversity Travel,PIN038055,574.56,
DFID,CSC,08/02/2019,Scholar Travel,Award Costs,Diversity Travel,PIN038055,535.42,
DFID,CSC,08/02/2019,Scholar Travel,Award Costs,Diversity Travel,PIN038056,634.7,
DFID,CSC,08/02/2019,Scholar Travel,Award Costs,Diversity Travel,PIN038056,368.3,
DFID,CSC,08/02/2019,Scholar Travel,Award Costs,Diversity Travel,PIN038056,532.4,
DFID,CSC,08/02/2019,Scholar Travel,Award Costs,Diversity Travel,PIN038056,530,
DFID,CSC,08/02/2019,Scholar Travel,Award Costs,Diversity Travel,PIN038056,703.4,
DFID,CSC,08/02/2019,Scholar Travel,Award Costs,Diversity Travel,PIN038056,442.1,
DFID,CSC,08/02/2019,Scholar Travel,Award Costs,Diversity Travel,PIN038056,432.1,
DFID,CSC,08/02/2019,Scholar Travel,Award Costs,Diversity Travel,PIN038056,521.4,
DFID,CSC,08/02/2019,Scholar Travel,Award Costs,Diversity Travel,PIN038056,444.3,
DFID,CSC,08/02/2019,Scholar Travel,Award Costs,Diversity Travel,PIN038056,253.7,
DFID,CSC,08/02/2019,Scholar Travel,Award Costs,Diversity Travel,PIN038056,523.8,
DFID,CSC,08/02/2019,Scholar Travel,Award Costs,Diversity Travel,PIN038056,887.6,
DFID,CSC,08/02/2019,Scholar Travel,Award Costs,Diversity Travel,PIN038056,366.1,
DFID,CSC,08/02/2019,Scholar Travel,Award Costs,Diversity Travel,PIN038056,676.3,
DFID,CSC,08/02/2019,Scholar Travel,Award Costs,Diversity Travel,PIN038056,531.1,
DFID,CSC,08/02/2019,Scholar Travel,Award Costs,Diversity Travel,PIN038056,565.8,
DFID,CSC,08/02/2019,Scholar Travel,Award Costs,Diversity Travel,PIN038056,424.4,
DFID,CSC,08/02/2019,Scholar Travel,Award Costs,Diversity Travel,PIN038056,629.1,
DFID,CSC,08/02/2019,Scholar Travel,Award Costs,Diversity Travel,PIN038056,600,
DFID,CSC,08/02/2019,Scholar Travel,Award Costs,Diversity Travel,PIN038056,676.9,
DFID,CSC,08/02/2019,Scholar Travel,Award Costs,Diversity Travel,PIN038056,612.56,
DFID,CSC,08/02/2019,Scholar Travel,Award Costs,Diversity Travel,PIN038056,751.5,
DFID,CSC,08/02/2019,Scholar Travel,Award Costs,Diversity Travel,PIN038056,560.2,
DFID,CSC,08/02/2019,Scholar Travel,Award Costs,Diversity Travel,PIN038056,617.5,
DFID,CSC,08/02/2019,Scholar Travel,Award Costs,Diversity Travel,PIN038056,530.2,
DFID,CSC,08/02/2019,Scholar Travel,Award Costs,Diversity Travel,PIN038056,700,
DFID,CSC,08/02/2019,Scholar Travel,Award Costs,Diversity Travel,PIN038056,467.8,
DFID,CSC,08/02/2019,Scholar Travel,Award Costs,Diversity Travel,PIN038056,20.5,
DFID,CSC,08/02/2019,Scholar Travel,Award Costs,Diversity Travel,PIN038056,690.9,
DFID,CSC,08/02/2019,Scholar Travel,Award Costs,Diversity Travel,PIN038056,690.9,
DFID,CSC,08/02/2019,Scholar Travel,Award Costs,Diversity Travel,PIN038056,568.6,
DFID,CSC,08/02/2019,Scholar Travel,Award Costs,Diversity Travel,PIN038056,441.5,
DFID,CSC,08/02/2019,Scholar Travel,Award Costs,Diversity Travel,PIN038056,788.2,
DFID,CSC,08/02/2019,Scholar Travel,Award Costs,Diversity Travel,PIN038056,-629.1,
DFID,CSC,08/02/2019,Fieldwork Airfare,Award Costs,Diversity Travel,PIN038057,616.31,
BEIS,CSC,08/02/2019,Scholar Travel,Award Costs,Diversity Travel,PIN038057,949.1,
DFID,CSC,08/02/2019,Scholar Travel,Award Costs,Diversity Travel,PIN038057,657.14,
BEIS,CSC,08/02/2019,Scholar Travel,Award Costs,Diversity Travel,PIN038057,553.1,
DFID,CSC,08/02/2019,Scholar Travel,Award Costs,Diversity Travel,PIN038057,32.1,
DFID,CSC,08/02/2019,Scholar Travel,Award Costs,Diversity Travel,PIN038057,513.66,
DFID,CSC,08/02/2019,Miscellaneous,Programme Costs,Way With Words Group,PIN038058,441.15,
DFID,CSC,08/02/2019,Miscellaneous,Programme Costs,Way With Words Group,PIN038058,2205.76,
DFID,CSC,15/02/2019,Scholar Engagement,Programme Costs,Association of Commonwealth Univs,PIN038061,4977.9,
DFID,CSC,15/02/2019,Scholar Engagement,Programme Costs,Association of Commonwealth Univs,PIN038061,4977.9,
DFID,CSC,15/02/2019,Scholar Engagement,Admin Costs,Association of Commonwealth Univs,PIN038061,9.84,
DFID,CSC,15/02/2019,Scholar Engagement,Programme Costs,Association of Commonwealth Univs,PIN038061,25.86,
DFID,CSC,15/02/2019,Scholar Engagement,Programme Costs,Association of Commonwealth Univs,PIN038061,16.32,
DFID,CSC,15/02/2019,Photocopying,Programme Costs,Association of Commonwealth Univs,PIN038061,20.84,
DFID,CSC,15/02/2019,Photocopying,Programme Costs,Association of Commonwealth Univs,PIN038061,42.34,
DFID,CSC,15/02/2019,Photocopying,Admin Costs,Association of Commonwealth Univs,PIN038061,552.41,
DFID,CSC,15/02/2019,Photocopying,Programme Costs,Association of Commonwealth Univs,PIN038061,68.82,
DFID,CSC,15/02/2019,Photocopying,Programme Costs,Association of Commonwealth Univs,PIN038061,18.26,
DFID,CSC,15/02/2019,Photocopying,Admin Costs,Association of Commonwealth Univs,PIN038061,936.01,
DFID,CSC,15/02/2019,Photocopying,Programme Costs,Association of Commonwealth Univs,PIN038061,129.17,
DFID,CSC,15/02/2019,Photocopying,Programme Costs,Association of Commonwealth Univs,PIN038061,27.1,
DFID,CSC,15/02/2019,Photocopying,Programme Costs,Association of Commonwealth Univs,PIN038061,0.07,
DFID,CSC,15/02/2019,Photocopying,Admin Costs,Association of Commonwealth Univs,PIN038061,825.62,
DFID,CSC,15/02/2019,Photocopying,Programme Costs,Association of Commonwealth Univs,PIN038061,16.55,
DFID,CSC,15/02/2019,Photocopying,Programme Costs,Association of Commonwealth Univs,PIN038061,5.58,
DFID,CSC,15/02/2019,Photocopying,Admin Costs,Association of Commonwealth Univs,PIN038061,498.1,
DFID,CSC,15/02/2019,Photocopying,Programme Costs,Association of Commonwealth Univs,PIN038061,23.27,
DFID,CSC,15/02/2019,Photocopying,Programme Costs,Association of Commonwealth Univs,PIN038061,17.08,
DFID,CSC,15/02/2019,Photocopying,Admin Costs,Association of Commonwealth Univs,PIN038061,539.53,
DFID,CSC,15/02/2019,Scholar Engagement,Programme Costs,Association of Commonwealth Univs,PIN038061,598.8,
DFID,CSC,15/02/2019,Scholar Engagement,Programme Costs,Association of Commonwealth Univs,PIN038061,3.6,
DFID,CSC,15/02/2019,Scholar Engagement,Admin Costs,Association of Commonwealth Univs,PIN038061,4.8,
DFID,CSC,15/02/2019,Postage & Courier,Admin Costs,Association of Commonwealth Univs,PIN038061,535.22,
DFID,CSC,15/02/2019,Postage & Courier,Admin Costs,Association of Commonwealth Univs,PIN038061,174.06,
DFID,CSC,15/02/2019,Postage & Courier,Admin Costs,Association of Commonwealth Univs,PIN038061,315.87,
DFID,CSC,15/02/2019,Postage & Courier,Admin Costs,Association of Commonwealth Univs,PIN038061,333.93,
DFID,CSC,15/02/2019,Postage & Courier,Admin Costs,Association of Commonwealth Univs,PIN038061,312.9,
DFID,CSC,15/02/2019,Scholar Engagement,Admin Costs,Association of Commonwealth Univs,PIN038061,2.4,
DFID,CSC,15/02/2019,Engagement,Admin Costs,Association of Commonwealth Univs,PIN038061,47.63,
DFID,CSC,15/02/2019,Engagement,Admin Costs,Association of Commonwealth Univs,PIN038061,46.45,
DFID,CSC,15/02/2019,Engagement,Admin Costs,Association of Commonwealth Univs,PIN038061,46.9,
DFID,CSC,15/02/2019,Engagement,Admin Costs,Association of Commonwealth Univs,PIN038061,47.22,
DFID,CSC,15/02/2019,Postage & Courier,Admin Costs,Association of Commonwealth Univs,PIN038061,7.88,
DFID,CSC,15/02/2019,Postage & Courier,Admin Costs,Association of Commonwealth Univs,PIN038061,9.46,
DFID,CSC,15/02/2019,Postage & Courier,Admin Costs,Association of Commonwealth Univs,PIN038061,-89.49,
DFID,CSC,15/02/2019,Alumni Engagement,Programme Costs,TFW Printers,PIN038063,186,
DFID,CSC,15/02/2019,Alumni Engagement,Programme Costs,TFW Printers,PIN038063,930,
DFID,CSC,15/02/2019,Scholar Travel,Award Costs,Diversity Travel,PIN038064,714.68,
DFID,CSC,15/02/2019,Scholar Travel,Award Costs,Diversity Travel,PIN038064,32.8,
DFID,CSC,15/02/2019,Scholar Travel,Award Costs,Diversity Travel,PIN038064,530.5,
DFID,CSC,15/02/2019,Scholar Travel,Award Costs,Diversity Travel,PIN038064,-85.52,
DFID,CSC,15/02/2019,Scholar Travel,Award Costs,Diversity Travel,PIN038064,-260.76,
DFID,CSC,15/02/2019,Scholar Travel,Award Costs,Diversity Travel,PIN038064,442.32,
DFID,CSC,15/02/2019,Scholar Travel,Award Costs,Diversity Travel,PIN038065,76,
DFID,CSC,15/02/2019,Scholar Travel,Award Costs,Diversity Travel,PIN038065,568.4,
DFID,CSC,15/02/2019,Fieldwork Airfare,Award Costs,Diversity Travel,PIN038065,1125.32,
DFID,CSC,15/02/2019,Scholar Travel,Award Costs,Diversity Travel,PIN038065,665.4,
DFID,CSC,15/02/2019,Scholar Travel,Programme Costs,Diversity Travel,PIN038065,557.74,
DFID,CSC,15/02/2019,Scholar Travel,Award Costs,Diversity Travel,PIN038065,419.3,
DFID,CSC,15/02/2019,Scholar Travel,Award Costs,Diversity Travel,PIN038065,641.8,
DFID,CSC,15/02/2019,Scholar Travel,Award Costs,Diversity Travel,PIN038065,458.8,
DFID,CSC,15/02/2019,Scholar Travel,Award Costs,Diversity Travel,PIN038065,424.6,
DFID,CSC,15/02/2019,Scholar Travel,Award Costs,Diversity Travel,PIN038065,617.2,
DFID,CSC,15/02/2019,Scholar Travel,Award Costs,Diversity Travel,PIN038065,582.6,
DFID,CSC,15/02/2019,Scholar Travel,Award Costs,Diversity Travel,PIN038065,692.2,
DFID,CSC,15/02/2019,Scholar Travel,Award Costs,Diversity Travel,PIN038065,584.3,
DFID,CSC,15/02/2019,Scholar Travel,Award Costs,Diversity Travel,PIN038065,263,
DFID,CSC,15/02/2019,Scholar Travel,Award Costs,Diversity Travel,PIN038065,651.7,
DFID,CSC,15/02/2019,Scholar Travel,Award Costs,Diversity Travel,PIN038065,501,
DFID,CSC,15/02/2019,Scholar Travel,Award Costs,Diversity Travel,PIN038065,426.9,
DFID,CSC,15/02/2019,Scholar Travel,Award Costs,Diversity Travel,PIN038065,421.6,
DFID,CSC,15/02/2019,Scholar Travel,Programme Costs,Diversity Travel,PIN038065,613.9,
DFID,CSC,15/02/2019,Scholar Travel,Award Costs,Diversity Travel,PIN038065,199.6,
DFID,CSC,15/02/2019,Scholar Travel,Award Costs,Diversity Travel,PIN038065,434.7,
DFID,CSC,15/02/2019,Scholar Travel,Award Costs,Diversity Travel,PIN038065,453.32,
DFID,CSC,15/02/2019,Scholar Travel,Award Costs,Diversity Travel,PIN038065,564.62,
DFID,CSC,15/02/2019,Scholar Travel,Award Costs,Diversity Travel,PIN038065,210.5,
DFID,CSC,15/02/2019,Scholar Travel,Award Costs,Diversity Travel,PIN038065,560,
DFID,CSC,15/02/2019,Scholar Travel,Award Costs,Diversity Travel,PIN038065,287,
DFID,CSC,15/02/2019,Scholar Travel,Programme Costs,Diversity Travel,PIN038065,420.8,
DFID,CSC,15/02/2019,Scholar Travel,Award Costs,Diversity Travel,PIN038065,567,
DFID,CSC,15/02/2019,Scholar Travel,Award Costs,Diversity Travel,PIN038065,705.4,
DFID,CSC,15/02/2019,Scholar Travel,Award Costs,Diversity Travel,PIN038065,631.7,
DFID,CSC,15/02/2019,Scholar Travel,Award Costs,Diversity Travel,PIN038065,633.3,
DFID,CSC,15/02/2019,Scholar Travel,Award Costs,Diversity Travel,PIN038065,615.5,
DFID,CSC,15/02/2019,Scholar Travel,Award Costs,Diversity Travel,PIN038065,648.4,
DFID,CSC,15/02/2019,Scholar Travel,Award Costs,Diversity Travel,PIN038065,397.7,
DFID,CSC,15/02/2019,Scholar Travel,Award Costs,Diversity Travel,PIN038065,498.4,
DFID,CSC,15/02/2019,Scholar Travel,Award Costs,Diversity Travel,PIN038065,297.3,
DFID,CSC,15/02/2019,Scholar Travel,Award Costs,Diversity Travel,PIN038065,795.42,
BEIS,CSC,15/02/2019,Scholar Travel,Award Costs,Diversity Travel,PIN038065,408.62,
BEIS,CSC,15/02/2019,Scholar Travel,Award Costs,Diversity Travel,PIN038065,487.22,
DFID,CSC,15/02/2019,Immigration Health Surcharge,Award Costs,Scholar,PIN038067,150,
DFID,CSC,15/02/2019,Visa Costs,Award Costs,Scholar,PIN038067,494.2,
DFID,CSC,15/02/2019,Scholar Stipend,Award Costs,Scholar,PIN038069,1084,
DFID,CSC,15/02/2019,Immigration Health Surcharge,Award Costs,Scholar,PIN038074,450,
DFID,CSC,15/02/2019,Visa Costs,Award Costs,Scholar,PIN038074,494.2,
DFID,CSC,15/02/2019,Tuition Fee,Award Costs,University of Teesside,PIN038080,12045,
DFID,CSC,15/02/2019,Tuition Fee,Award Costs,University of Teesside,PIN038081,12045,
DFID,CSC,15/02/2019,Tuition Fee,Award Costs,University of Teesside,PIN038082,12045,
DFID,CSC,15/02/2019,Tuition Fee,Award Costs,University of Teesside,PIN038083,12045,
DFID,CSC,15/02/2019,Tuition Fee,Award Costs,University of Teesside,PIN038084,12045,
DFID,CSC,15/02/2019,Tuition Fee,Award Costs,The University of Edinburgh,PIN038085,1772,
BEIS,CSC,15/02/2019,Award Support Costs,Award Costs,University of Surrey,PIN038086,2500,
BEIS,CSC,15/02/2019,Award Support Costs,Award Costs,University of Lincoln,PIN038087,2500,
BEIS,CSC,15/02/2019,Award Support Costs,Award Costs,University of Leicester,PIN038088,2500,
BEIS,CSC,15/02/2019,Award Support Costs,Award Costs,University of Sheffield,PIN038089,2500,
DFID,CSC,15/02/2019,Award Support Costs,Award Costs,The University of Nottingham,PIN038090,4000,
DFID,CSC,15/02/2019,Award Support Costs,Award Costs,Bangor University,PIN038091,2000,
DFID,CSC,15/02/2019,Tuition Fee,Award Costs,Bangor University,PIN038091,10800,
DFID,CSC,15/02/2019,Tuition Fee,Award Costs,The Open University,PIN038092,22600,
DFID,CSC,15/02/2019,Tuition Fee,Award Costs,The Open University,PIN038092,50700,Tuition fees for 12 scholars
DFID,CSC,15/02/2019,Tuition Fee,Award Costs,The Open University,PIN038093,7900,
DFID,CSC,15/02/2019,Tuition Fee,Award Costs,The Open University,PIN038093,21430,
DFID,CSC,15/02/2019,Award Support Costs,Award Costs,University of Oxford,PIN038094,5000,
DFID,CSC,15/02/2019,Tuition Fee,Award Costs,The University of Leeds,PIN038095,16000,
DFID,CSC,15/02/2019,Tuition Fee,Award Costs,University of Glasgow,PIN038096,16120,
DFID,CSC,15/02/2019,Tuition Fee,Award Costs,Lond Sch Hygiene & Tropical Me,PIN038097,8937.6,
DFID,CSC,15/02/2019,Tuition Fee,Award Costs,University of Bristol,PIN038098,19300,
DFID,CSC,15/02/2019,Visa Costs,Award Costs,Sheffield Hallam Univ,PIN038099,114.29,
DFID,CSC,15/02/2019,Scholar Travel,Award Costs,Sheffield Hallam Univ,PIN038099,436.1,
DFID,CSC,15/02/2019,Scholar Allowances,Award Costs,Sheffield Hallam Univ,PIN038100,200,
DFID,CSC,15/02/2019,Scholar Allowances,Award Costs,Sheffield Hallam Univ,PIN038100,225,
DFID,CSC,15/02/2019,Scholar Travel,Award Costs,Sheffield Hallam Univ,PIN038100,504.9,
DFID,CSC,15/02/2019,Visa Costs,Award Costs,University of Durham,PIN038101,525.71,
DFID,CSC,15/02/2019,Scholar Allowances,Award Costs,University of Durham,PIN038102,44.23,
DFID,CSC,15/02/2019,Scholar Travel,Award Costs,University of Durham,PIN038102,3792.25,
DFID,CSC,15/02/2019,Scholar Travel,Award Costs,University of Durham,PIN038102,3647.78,
DFID,CSC,15/02/2019,Tuition Fee,Award Costs,University of Southampton,PIN038103,10411.96,
DFID,CSC,15/02/2019,Tuition Fee,Award Costs,University of Southampton,PIN038103,34125,Tuition fees for 8 scholars
DFID,CSC,15/02/2019,Tuition Fee,Award Costs,University of Southampton,PIN038104,20030.55,
DFID,CSC,15/02/2019,Tuition Fee,Award Costs,University of Southampton,PIN038104,77900,Tuition fees for 18 scholars
DFID,CSC,15/02/2019,Scholar Allowances,Award Costs,Scholar,PIN038105,573.17,
DFID,CSC,15/02/2019,Alumni Engagement,Programme Costs,The British Council,PIN038106,3416.93,
DFID,CSC,15/02/2019,Alumni Engagement,Programme Costs,The British Council,PIN038106,21768.96,
DFID,CSC,15/02/2019,Alumni Engagement,Programme Costs,The British Council,PIN038106,8287.55,
DFID,CSC,15/02/2019,Alumni Engagement,Programme Costs,The British Council,PIN038106,41437.75,
DFID,CSC,15/02/2019,Service Provision,Admin Costs,The British Council,PIN038106,3462.3,
DFID,CSC,15/02/2019,Service Provision,Admin Costs,The British Council,PIN038106,17311.5,
DFID,CSC,15/02/2019,Alumni Engagement,Programme Costs,The British Council,PIN038107,1074.17,
DFID,CSC,15/02/2019,Alumni Engagement,Programme Costs,The British Council,PIN038107,16743.76,
DFID,CSC,15/02/2019,Alumni Engagement,Programme Costs,The British Council,PIN038107,8287.55,
DFID,CSC,15/02/2019,Alumni Engagement,Programme Costs,The British Council,PIN038107,41437.75,
DFID,CSC,15/02/2019,Service Provision,Admin Costs,The British Council,PIN038107,3462.3,
DFID,CSC,15/02/2019,Service Provision,Admin Costs,The British Council,PIN038107,17311.5,
DFID,CSC,22/02/2019,Scholar Engagement,Programme Costs,Jon Spaull,PIN038108,1134.09,
DFID,CSC,22/02/2019,Scholar Engagement,Programme Costs,Jon Spaull,PIN038108,5670.47,
DFID,CSC,22/02/2019,Tuition Fee,Award Costs,The University of Edinburgh,PIN038109,4565,
DFID,CSC,22/02/2019,Tuition Fee,Award Costs,The University of Edinburgh,PIN038109,8200,
DFID,CSC,22/02/2019,Tuition Fee,Award Costs,Coventry University,PIN038110,4900,
DFID,CSC,22/02/2019,Tuition Fee,Award Costs,Coventry University,PIN038111,6974.11,
DFID,CSC,22/02/2019,Tuition Fee,Award Costs,Coventry University,PIN038112,6552.05,
DFID,CSC,22/02/2019,Tuition Fee,Award Costs,Coventry University,PIN038113,6394.89,
DFID,CSC,22/02/2019,Tuition Fee,Award Costs,Coventry University,PIN038114,6130.47,
DFID,CSC,22/02/2019,Scholar Stipend,Award Costs,Scholar,PIN038116,1084,
DFID,CSC,22/02/2019,Immigration Health Surcharge,Award Costs,Scholar,PIN038117,150,
DFID,CSC,22/02/2019,Visa Costs,Award Costs,Scholar,PIN038117,494.2,
DFID,CSC,22/02/2019,Scholar Allowances,Award Costs,Scholar,PIN038119,600,
BEIS,CSC,22/02/2019,Scholar Allowances,Award Costs,Scholar,PIN038120,700,
DFID,CSC,22/02/2019,Award Support Costs,Award Costs,University of Bristol,PIN038127,2000,
DFID,CSC,22/02/2019,Award Support Costs,Award Costs,Glasgow Caledonian University,PIN038128,4000,
BEIS,CSC,22/02/2019,Award Support Costs,Award Costs,The University of Warwick,PIN038129,2500,
DFID,CSC,22/02/2019,Tuition Fee,Award Costs,University of Strathclyde,PIN038130,15000,
DFID,CSC,22/02/2019,Award Support Costs,Award Costs,University of Glasgow,PIN038131,5000,
BEIS,CSC,22/02/2019,Award Support Costs,Award Costs,University of Sheffield,PIN038133,2500,
BEIS,CSC,22/02/2019,Award Support Costs,Award Costs,The Institute of Cancer Research,PIN038134,2500,
BEIS,CSC,22/02/2019,Award Support Costs,Award Costs,University of Bristol,PIN038135,2500,
DFID,CSC,22/02/2019,Tuition Fee,Award Costs,University of Reading,PIN038136,11480,
BEIS,CSC,22/02/2019,Award Support Costs,Award Costs,University of East Anglia,PIN038137,2500,
DFID,CSC,22/02/2019,Award Support Costs,Award Costs,University of Bristol,PIN038138,5000,
DFID,CSC,22/02/2019,Award Support Costs,Award Costs,University of Reading,PIN038139,800,
DFID,CSC,22/02/2019,Award Support Costs,Award Costs,University of Reading,PIN038140,1250,
DFID,CSC,22/02/2019,Tuition Fee,Award Costs,University of Reading,PIN038140,15464,
DFID,CSC,22/02/2019,Visa Costs,Award Costs,University of Bath,PIN038141,48.1,
DFID,CSC,22/02/2019,Scholar Travel,Award Costs,University of Bath,PIN038141,390.2,
DFID,CSC,22/02/2019,Scholar Allowances,Award Costs,University of Bath,PIN038141,200,
DFID,CSC,22/02/2019,Scholar Allowances,Award Costs,University of Bath,PIN038141,225,
DFID,CSC,22/02/2019,Tuition Fee,Award Costs,University of Bath,PIN038141,21100,
DFID,CSC,22/02/2019,Visa Costs,Award Costs,University of Bath,PIN038142,113.97,
DFID,CSC,22/02/2019,Scholar Travel,Award Costs,University of Bath,PIN038142,662.6,
DFID,CSC,22/02/2019,Scholar Travel,Award Costs,University of Bath,PIN038142,44.6,
DFID,CSC,22/02/2019,Scholar Allowances,Award Costs,University of Bath,PIN038142,200,
DFID,CSC,22/02/2019,Scholar Allowances,Award Costs,University of Bath,PIN038142,225,
DFID,CSC,22/02/2019,Tuition Fee,Award Costs,University of Bath,PIN038142,21100,
DFID,CSC,22/02/2019,Visa Costs,Award Costs,University of Bath,PIN038143,100.68,
DFID,CSC,22/02/2019,Scholar Travel,Award Costs,University of Bath,PIN038143,280.3,
DFID,CSC,22/02/2019,Scholar Allowances,Award Costs,University of Bath,PIN038143,200,
DFID,CSC,22/02/2019,Scholar Allowances,Award Costs,University of Bath,PIN038143,225,
DFID,CSC,22/02/2019,Tuition Fee,Award Costs,University of Bath,PIN038143,17700,
DFID,CSC,22/02/2019,Visa Costs,Award Costs,University of Bath,PIN038144,66.18,
DFID,CSC,22/02/2019,Scholar Travel,Award Costs,University of Bath,PIN038144,630.8,
DFID,CSC,22/02/2019,Scholar Travel,Award Costs,University of Bath,PIN038144,35,
DFID,CSC,22/02/2019,Scholar Allowances,Award Costs,University of Bath,PIN038144,200,
DFID,CSC,22/02/2019,Scholar Allowances,Award Costs,University of Bath,PIN038144,225,
DFID,CSC,22/02/2019,Tuition Fee,Award Costs,University of Bath,PIN038144,17700,
DFID,CSC,22/02/2019,Visa Costs,Award Costs,University of Bath,PIN038145,113.97,
DFID,CSC,22/02/2019,Scholar Travel,Award Costs,University of Bath,PIN038145,662.6,
DFID,CSC,22/02/2019,Scholar Travel,Award Costs,University of Bath,PIN038145,44.6,
DFID,CSC,22/02/2019,Scholar Allowances,Award Costs,University of Bath,PIN038145,200,
DFID,CSC,22/02/2019,Scholar Allowances,Award Costs,University of Bath,PIN038145,225,
DFID,CSC,22/02/2019,Tuition Fee,Award Costs,University of Bath,PIN038145,21100,
BEIS,CSC,22/02/2019,Award Support Costs,Award Costs,The University of Edinburgh,PIN038146,2500,
DFID,CSC,22/02/2019,Tuition Fee,Award Costs,University of Dundee,PIN038147,13160,
DFID,CSC,22/02/2019,Award Support Costs,Award Costs,Lond Sch Hygiene & Tropical Me,PIN038148,1570,
DFID,CSC,22/02/2019,Tuition Fee,Award Costs,Loughborough University,PIN038149,16396,
BEIS,CSC,22/02/2019,Award Support Costs,Award Costs,Liverpool John Moores University,PIN038150,2500,
DFID,CSC,22/02/2019,Tuition Fee,Programme Costs,University College London Fees,PIN038151,18000,
DFID,CSC,22/02/2019,Tuition Fee,Award Costs,Heriot Watt University,PIN038152,17570,
DFID,CSC,22/02/2019,Tuition Fee,Award Costs,Heriot Watt University,PIN038153,-3514,
DFID,CSC,22/02/2019,Tuition Fee,Award Costs,Heriot Watt University,PIN038154,17570,
DFID,CSC,22/02/2019,Scholar Allowances,Award Costs,University of St  Andrews,PIN038155,225,
DFID,CSC,22/02/2019,Scholar Allowances,Award Costs,University of St  Andrews,PIN038155,125,
DFID,CSC,22/02/2019,Scholar Travel,Award Costs,University of St  Andrews,PIN038155,85,
DFID,CSC,22/02/2019,Scholar Travel,Award Costs,University of St  Andrews,PIN038155,742.26,
DFID,CSC,22/02/2019,Scholar Allowances,Award Costs,University of St  Andrews,PIN038155,300,
DFID,CSC,22/02/2019,Scholar Travel,Award Costs,University of St  Andrews,PIN038155,2160.9,
DFID,CSC,22/02/2019,Visa Costs,Award Costs,University of St  Andrews,PIN038155,164.4,
DFID,CSC,22/02/2019,Scholar Travel,Award Costs,University of St  Andrews,PIN038156,-85,
DFID,CSC,22/02/2019,Scholar Travel,Award Costs,University of St  Andrews,PIN038156,-82.26,
DFID,CSC,22/02/2019,Scholar Travel,Award Costs,University of St  Andrews,PIN038156,-910.9,
DFID,CSC,22/02/2019,Scholar Allowances,Award Costs,Scholar,PIN038157,600,
DFID,CSC,22/02/2019,Scholar Stipend,Award Costs,Scholar,PIN038158,3440.09,
DFID,CSC,04/02/2019,Bank Charges,Award Costs,MasterCard Prepaid Management Services Ltd,PIN038226,5.88,
DFID,CSC,04/02/2019,Scholar Travel,Award Costs,Scholar,PIN038226,17,
DFID,CSC,04/02/2019,Visa Costs,Award Costs,Scholar,PIN038226,570.83,
DFID,CSC,06/02/2019,Bank Charges,Award Costs,MasterCard Prepaid Management Services Ltd,PIN038227,74.45,
DFID,CSC,06/02/2019,Scholar Travel,Award Costs,Scholar,PIN038227,113,
DFID,CSC,06/02/2019,Scholar Travel,Award Costs,Scholar,PIN038227,75,
DFID,CSC,06/02/2019,Scholar Allowances,Programme Costs,Scholar,PIN038227,421,
DFID,CSC,06/02/2019,Scholar Stipend,Programme Costs,Scholar,PIN038227,2009.86,
DFID,CSC,06/02/2019,Scholar Allowances,Award Costs,Scholar,PIN038227,421,
DFID,CSC,06/02/2019,Scholar Stipend,Award Costs,Scholar,PIN038227,2045.47,
DFID,CSC,06/02/2019,Scholar Allowances,Award Costs,Scholar,PIN038227,421,
DFID,CSC,06/02/2019,Scholar Stipend,Award Costs,Scholar,PIN038227,1938.64,
DFID,CSC,07/02/2019,Bank Charges,Award Costs,MasterCard Prepaid Management Services Ltd,PIN038228,23.6,
DFID,CSC,07/02/2019,Scholar Allowances,Award Costs,Scholar,PIN038228,421,
DFID,CSC,07/02/2019,Scholar Stipend,Award Costs,Scholar,PIN038228,1938.64,
DFID,CSC,14/02/2019,Bank Charges,Award Costs,MasterCard Prepaid Management Services Ltd,PIN038230,21.82,
DFID,CSC,14/02/2019,Scholar Allowances,Award Costs,Scholar,PIN038230,421,
DFID,CSC,14/02/2019,Scholar Stipend,Award Costs,Scholar,PIN038230,1760.59,
DFID,CSC,22/02/2019,Bank Charges,Award Costs,MasterCard Prepaid Management Services Ltd,PIN038231,12.69,
DFID,CSC,22/02/2019,Scholar Travel,Programme Costs,Scholar,PIN038231,86,
DFID,CSC,22/02/2019,Scholar Travel,Award Costs,Scholar,PIN038231,70,
DFID,CSC,22/02/2019,Scholar Travel,Award Costs,Scholar,PIN038231,91,
DFID,CSC,22/02/2019,Scholar Travel,Award Costs,Scholar,PIN038231,91,
DFID,CSC,22/02/2019,Scholar Travel,Award Costs,Scholar,PIN038231,42,
DFID,CSC,22/02/2019,Scholar Travel,Award Costs,Scholar,PIN038231,109,
DFID,CSC,22/02/2019,Scholar Travel,Award Costs,Scholar,PIN038231,113,
DFID,CSC,22/02/2019,Scholar Travel,Award Costs,Scholar,PIN038231,17,
DFID,CSC,22/02/2019,Scholar Travel,Award Costs,Scholar,PIN038231,50,
DFID,CSC,22/02/2019,Scholar Allowances,Award Costs,Scholar,PIN038231,600,
BEIS,CSC,20/02/2019,Scholar Stipend,Award Costs,Scholar,PRF000119,-4881,
DFID,CSC,05/02/2019,Scholar Stipend,Award Costs,Scholar,PRF000121,-2025.54,
DFID,CSC,22/02/2019,Award Support Costs,Award Costs,Kings College London,PRF000123,-5000,
DFID,CSC,26/02/2019,Tuition Fee,Award Costs,University of Durham,PRF000124,-13200,
